[Event "26th Abu Dhabi Master 2019"]
[Site "Abu Dhabi"]
[Date "2019.08.08"]
[Round "7.72"]
[White "Davainis, Marius"]
[Black "Arjun C Krishnamachari"]
[Result "1/2-1/2"]
[ECO "B07"]
[WhiteElo "2105"]
[BlackElo "2212"]
[Annotator "NA"]
[PlyCount "59"]
[EventDate "2019.08.02"]
[EventType "swiss"]
[EventCountry "UAE"]
[SourceTitle "playchess.com"]
[Source "ChessBase"]
[SourceQuality "1"]
[TimeControl "5400+30"]

1. e4 {[%emt 0:02:59]} d6 {[%emt 0:01:56]} 2. d4 {[%emt 0:00:17]} Nf6 {[%emt 0:00:21]} 3. Nc3 {[%emt 0:00:03]} c6 {[%emt 0:00:13]} 4. Nge2 {[%emt 0:03:31]} Qa5 {[%emt 0:03:20]} 5. Bd2 {[%emt 0:02:18]} e5 {[%emt 0:00:22]} 6. Nd5 {[%emt 0:08:30]} Qd8 {[%emt 0:00:18]} 7. Nxf6+ {[%emt 0:00:05]} Qxf6 {[%emt 0:00:06]} 8. Be3 {[%emt 0:00:14]} Bg4 {[%emt 0:05:20]} 9. Qd2 {[%emt 0:04:20]} Bxe2 {[%emt 0:03:23]} 10. Bxe2 {[%emt 0:00:03]} exd4 {[%emt 0:00:11]} 11. Bxd4 {[%emt 0:00:27]} Qe6 {[%emt 0:00:14]} 12. O-O {[%emt 0:05:41]} Nd7 {[%emt 0:00:34]} 13. b3 {[%emt 0:04:11]} Nf6 {[%emt 0:03:41]} 14. Bf3 {[%emt 0:04:55]} Be7 {[%emt 0:01:11]} 15. Rfe1 {[%emt 0:00:44]} O-O {[%emt 0:00:18]} 16. Rad1 {[%emt 0:00:33]} Rfd8 {[%emt 0:07:09]} 17. c4 {[%emt 0:00:13]} Nd7 {[%emt 0:00:47]} 18. g3 {[%emt 0:09:42]} Ne5 {[%emt 0:05:50]} 19. Bg2 {[%emt 0:00:40]} Qg4 {[%emt 0:00:21]} 20. Qe3 {[%emt 0:03:04]} Qh5 {[%emt 0:01:39]} 21. h3 {[%emt 0:00:32]} c5 {[%emt 0:00:55]} 22. Bc3 {[%emt 0:05:54]} Nc6 {[%emt 0:02:02]} 23. Rd5 {[%emt 0:00:50]} Qg6 {[%emt 0:00:05]} 24. Red1 {[%emt 0:00:21]} Qe6 {[%emt 0:02:58]} 25. f4 {[%emt 0:08:18]} Bf6 {[%emt 0:00:52]} 26. e5 {[%emt 0:02:33]} dxe5 {[%emt 0:00:08]} 27. fxe5 {[%emt 0:00:37]} Be7 {[%emt 0:00:38]} 28. Qf4 {[%emt 0:03:57]} Qg6 {[%emt 0:03:13]} 29. Rf1 {[%emt 0:07:27]} Rf8 {[%emt 0:07:44]} 30. Rd7 {[%emt 0:04:11]} 1/2-1/2